[Event "Titled Tuesday Blitz November 07 Early 2023"]
[White "Zaksaite, Salomeja"]
[Black "Senthil Maran K"]
[WhiteFideId "12801496"]
[BlackFideId "25035681"]
[WhiteElo "2342"]
[BlackElo "2541"]
[Result "0-1"]
[Round "8"]
[TimeControl "180+1"]
[Date "2023.11.07"]
[WhiteClock "0:00:00"]
[BlackClock "0:01:52"]
[Board "102"]

1. e4 {[%clk 0:03:00]}  c6 {[%clk 0:03:00]} 2. d4 {[%clk 0:02:59]}  d5 {[%clk 0:03:00]} 3. exd5 {[%clk 0:03:00]}  cxd5 {[%clk 0:03:01]} 4. Bd3 {[%clk 0:03:00]}  Nc6 {[%clk 0:03:01]} 5. c3 {[%clk 0:02:58]}  Nf6 {[%clk 0:03:02]} 6. h3 {[%clk 0:02:58]}  g6 {[%clk 0:03:00]} 7. Nf3 {[%clk 0:02:56]}  Bf5 {[%clk 0:03:00]} 8. Be2 {[%clk 0:02:53]}  e6 {[%clk 0:03:00]} 9. O-O {[%clk 0:02:54]}  h5 {[%clk 0:02:58]} 10. Bg5 {[%clk 0:02:52]}  Be7 {[%clk 0:02:57]} 11. Qb3 {[%clk 0:02:52]}  Ne4 {[%clk 0:02:55]} 12. Qxb7 {[%clk 0:02:23]}  Nxg5 {[%clk 0:02:49]} 13. Qxc6+ {[%clk 0:02:20]}  Kf8 {[%clk 0:02:49]} 14. Nbd2 {[%clk 0:02:06]}  Rb8 {[%clk 0:02:44]} 15. c4 {[%clk 0:00:39]}  Rxb2 {[%clk 0:02:41]} 16. cxd5 {[%clk 0:00:39]}  Nxf3+ {[%clk 0:02:41]} 17. Bxf3 {[%clk 0:00:27]}  Rxd2 {[%clk 0:02:40]} 18. dxe6 {[%clk 0:00:17]}  Bxe6 {[%clk 0:02:41]} 19. d5 {[%clk 0:00:16]}  Bxd5 {[%clk 0:02:41]} 20. Qc3 {[%clk 0:00:15]}  Bf6 {[%clk 0:01:58]} 21. Qxd2 {[%clk 0:00:15]}  Be6 {[%clk 0:01:58]} 22. Qxd8+ {[%clk 0:00:12]}  Bxd8 {[%clk 0:01:59]} 23. Rfd1 {[%clk 0:00:08]}  Kg7 {[%clk 0:01:59]} 24. Bd5 {[%clk 0:00:07]}  Bf5 {[%clk 0:01:58]} 25. Rac1 {[%clk 0:00:05]}  Bb6 {[%clk 0:01:58]} 26. Rc6 {[%clk 0:00:04]}  Rd8 {[%clk 0:01:57]} 27. Bc4 {[%clk 0:00:03]}  Rxd1+ {[%clk 0:01:56]} 28. Kh2 {[%clk 0:00:00]}  Bd7 {[%clk 0:01:52]} 0-1


[Site "https://www.chess.com"]

[Event "Titled Tuesday Blitz November 07 Early 2023"]
[White "Samarth J Rao"]
[Black "Shukhman, Anna"]
[WhiteFideId "46652370"]
[BlackFideId "54180058"]
[WhiteElo "2082"]
[BlackElo "2532"]
[Result "0-1"]
[Round "8"]
[TimeControl "180+1"]
[Date "2023.11.07"]
[WhiteClock "0:00:00"]
[BlackClock "0:00:11"]
[Board "104"]

1. e4 {[%clk 0:03:00]}  c5 {[%clk 0:02:59]} 2. Nf3 {[%clk 0:03:00]}  e6 {[%clk 0:02:57]} 3. d4 {[%clk 0:03:00]}  cxd4 {[%clk 0:02:58]} 4. Nxd4 {[%clk 0:03:01]}  Nf6 {[%clk 0:02:58]} 5. Nc3 {[%clk 0:03:01]}  Nc6 {[%clk 0:02:59]} 6. Ndb5 {[%clk 0:03:02]}  Bb4 {[%clk 0:02:58]} 7. a3 {[%clk 0:03:02]}  Bxc3+ {[%clk 0:02:58]} 8. Nxc3 {[%clk 0:03:03]}  d5 {[%clk 0:02:59]} 9. exd5 {[%clk 0:03:02]}  exd5 {[%clk 0:02:59]} 10. Bd3 {[%clk 0:03:03]}  d4 {[%clk 0:02:59]} 11. Ne2 {[%clk 0:03:02]}  Bg4 {[%clk 0:02:56]} 12. O-O {[%clk 0:03:01]}  O-O {[%clk 0:02:54]} 13. f3 {[%clk 0:03:01]}  Bh5 {[%clk 0:02:52]} 14. Nf4 {[%clk 0:03:01]}  Bg6 {[%clk 0:02:51]} 15. Nxg6 {[%clk 0:03:01]}  hxg6 {[%clk 0:02:48]} 16. Bg5 {[%clk 0:02:59]}  Qd5 {[%clk 0:02:42]} 17. Qd2 {[%clk 0:02:58]}  Ne5 {[%clk 0:02:38]} 18. Bf4 {[%clk 0:02:50]}  Nfd7 {[%clk 0:02:30]} 19. Rad1 {[%clk 0:02:49]}  g5 {[%clk 0:01:33]} 20. Be4 {[%clk 0:02:36]}  Qb5 {[%clk 0:01:27]} 21. Bxe5 {[%clk 0:02:05]}  Nxe5 {[%clk 0:01:19]} 22. Qxd4 {[%clk 0:02:00]}  Rac8 {[%clk 0:00:41]} 23. Bd5 {[%clk 0:01:37]}  Rfe8 {[%clk 0:00:24]} 24. Rfe1 {[%clk 0:01:17]}  Qb6 {[%clk 0:00:21]} 25. Qxb6 {[%clk 0:01:12]}  axb6 {[%clk 0:00:22]} 26. c3 {[%clk 0:01:05]}  Kf8 {[%clk 0:00:22]} 27. Bxb7 {[%clk 0:01:04]}  Rc5 {[%clk 0:00:20]} 28. Be4 {[%clk 0:01:00]}  Nc4 {[%clk 0:00:20]} 29. Re2 {[%clk 0:00:59]}  f5 {[%clk 0:00:18]} 30. b4 {[%clk 0:00:54]}  Rce5 {[%clk 0:00:15]} 31. Rd4 {[%clk 0:00:46]}  Nxa3 {[%clk 0:00:15]} 32. Rd6 {[%clk 0:00:03]}  fxe4 {[%clk 0:00:15]} 33. fxe4 {[%clk 0:00:04]}  Rxe4 {[%clk 0:00:15]} 34. Rxe4 {[%clk 0:00:02]}  Rxe4 {[%clk 0:00:16]} 35. Rxb6 {[%clk 0:00:03]}  Nc4 {[%clk 0:00:16]} 36. Rc6 {[%clk 0:00:03]}  Ke7 {[%clk 0:00:13]} 37. b5 {[%clk 0:00:03]}  Kd7 {[%clk 0:00:13]} 38. Rc5 {[%clk 0:00:03]}  Ne5 {[%clk 0:00:12]} 39. b6 {[%clk 0:00:04]}  Re1+ {[%clk 0:00:11]} 40. Kf2 {[%clk 0:00:00]}  Nd3+ {[%clk 0:00:11]} 0-1


[Site "https://www.chess.com"]

[Event "Titled Tuesday Blitz November 07 Early 2023"]
[White "Jovic, Stanoje"]
[Black "Pakleza, Zbigniew"]
[WhiteFideId "905020"]
[BlackFideId "1119290"]
[WhiteElo "2432"]
[BlackElo "2737"]
[Result "1-0"]
[Round "8"]
[TimeControl "180+1"]
[Date "2023.11.07"]
[WhiteClock "0:00:04"]
[BlackClock "0:00:00"]
[Board "106"]

1. c4 {[%clk 0:03:00]}  a6 {[%clk 0:02:54]} 2. e4 {[%clk 0:02:57]}  e6 {[%clk 0:02:55]} 3. d4 {[%clk 0:02:56]}  d6 {[%clk 0:02:56]} 4. f4 {[%clk 0:02:55]}  Nd7 {[%clk 0:02:57]} 5. Nf3 {[%clk 0:02:54]}  f6 {[%clk 0:02:58]} 6. Nc3 {[%clk 0:02:53]}  c6 {[%clk 0:02:59]} 7. Be3 {[%clk 0:02:52]}  b6 {[%clk 0:02:59]} 8. Bd3 {[%clk 0:02:50]}  g6 {[%clk 0:02:59]} 9. g4 {[%clk 0:02:42]}  Ne7 {[%clk 0:02:57]} 10. h4 {[%clk 0:02:37]}  h6 {[%clk 0:02:54]} 11. h5 {[%clk 0:02:35]}  g5 {[%clk 0:02:51]} 12. Qd2 {[%clk 0:02:27]}  Bg7 {[%clk 0:02:46]} 13. O-O-O {[%clk 0:02:25]}  O-O {[%clk 0:02:30]} 14. d5 {[%clk 0:02:20]}  cxd5 {[%clk 0:02:24]} 15. cxd5 {[%clk 0:02:19]}  e5 {[%clk 0:02:22]} 16. fxg5 {[%clk 0:02:09]}  fxg5 {[%clk 0:02:21]} 17. Nxg5 {[%clk 0:02:08]}  hxg5 {[%clk 0:02:17]} 18. Bxg5 {[%clk 0:02:08]}  Nf6 {[%clk 0:02:15]} 19. h6 {[%clk 0:02:00]}  Bh8 {[%clk 0:02:15]} 20. h7+ {[%clk 0:01:57]}  Nxh7 {[%clk 0:01:54]} 21. Rxh7 {[%clk 0:01:56]}  Kxh7 {[%clk 0:01:49]} 22. Qh2+ {[%clk 0:01:50]}  Kg8 {[%clk 0:01:47]} 23. Rh1 {[%clk 0:01:37]}  Bg7 {[%clk 0:01:30]} 24. Qh7+ {[%clk 0:01:32]}  Kf7 {[%clk 0:01:29]} 25. Bh6 {[%clk 0:01:22]}  Rg8 {[%clk 0:01:04]} 26. Rf1+ {[%clk 0:01:22]}  Ke8 {[%clk 0:00:53]} 27. Bxg7 {[%clk 0:01:21]}  Ra7 {[%clk 0:00:46]} 28. g5 {[%clk 0:01:15]}  Bg4 {[%clk 0:00:34]} 29. g6 {[%clk 0:01:12]}  Bh5 {[%clk 0:00:18]} 30. Rf6 {[%clk 0:00:50]}  Kd7 {[%clk 0:00:16]} 31. Bf1 {[%clk 0:00:43]}  Kc7 {[%clk 0:00:13]} 32. a4 {[%clk 0:00:39]}  Kb8 {[%clk 0:00:11]} 33. b4 {[%clk 0:00:30]}  Bxg6 {[%clk 0:00:11]} 34. Qh6 {[%clk 0:00:24]}  Rc7 {[%clk 0:00:09]} 35. Kb2 {[%clk 0:00:23]}  Be8 {[%clk 0:00:08]} 36. Bxa6 {[%clk 0:00:22]}  Nf5 {[%clk 0:00:06]} 37. exf5 {[%clk 0:00:20]}  Rgxg7 {[%clk 0:00:05]} 38. Rxd6 {[%clk 0:00:19]}  Rg2+ {[%clk 0:00:06]} 39. Kb3 {[%clk 0:00:18]}  Qe7 {[%clk 0:00:04]} 40. Rxb6+ {[%clk 0:00:18]}  Ka7 {[%clk 0:00:04]} 41. d6 {[%clk 0:00:18]}  Bf7+ {[%clk 0:00:03]} 42. Bc4 {[%clk 0:00:11]}  Bxc4+ {[%clk 0:00:02]} 43. Ka3 {[%clk 0:00:11]}  Bf7 {[%clk 0:00:02]} 44. Qe3 {[%clk 0:00:08]}  Rb7 {[%clk 0:00:01]} 45. dxe7 {[%clk 0:00:06]}  Rxb6 {[%clk 0:00:01]} 46. Qxe5 {[%clk 0:00:05]}  Rg3 {[%clk 0:00:00]} 47. Qxg3 {[%clk 0:00:04]} 1-0


[Site "https://www.chess.com"]

[Event "Titled Tuesday Blitz November 07 Early 2023"]
[White "Gontcharov, Vladislav"]
[Black "Su, Dion"]
[WhiteFideId "4123492"]
[BlackFideId "2029731"]
[WhiteElo "2559"]
[BlackElo "2421"]
[Result "0-1"]
[Round "8"]
[TimeControl "180+1"]
[Date "2023.11.07"]
[WhiteClock "0:00:53"]
[BlackClock "0:01:34"]
[Board "110"]

1. d4 {[%clk 0:03:00]}  Nf6 {[%clk 0:02:59]} 2. c4 {[%clk 0:03:00]}  e6 {[%clk 0:02:59]} 3. Nc3 {[%clk 0:02:59]}  Bb4 {[%clk 0:02:59]} 4. e3 {[%clk 0:03:00]}  b6 {[%clk 0:02:59]} 5. Ne2 {[%clk 0:02:55]}  Ba6 {[%clk 0:02:59]} 6. a3 {[%clk 0:02:55]}  Bxc3+ {[%clk 0:02:59]} 7. Nxc3 {[%clk 0:02:54]}  d5 {[%clk 0:02:59]} 8. cxd5 {[%clk 0:02:34]}  Bxf1 {[%clk 0:02:59]} 9. Kxf1 {[%clk 0:02:29]}  Nxd5 {[%clk 0:02:49]} 10. Qf3 {[%clk 0:02:28]}  O-O {[%clk 0:02:48]} 11. Nxd5 {[%clk 0:02:27]}  exd5 {[%clk 0:02:48]} 12. g3 {[%clk 0:02:27]}  Nc6 {[%clk 0:02:44]} 13. Kg2 {[%clk 0:02:24]}  Re8 {[%clk 0:02:42]} 14. Bd2 {[%clk 0:02:20]}  Re6 {[%clk 0:02:40]} 15. Rhc1 {[%clk 0:02:17]}  Qd7 {[%clk 0:02:32]} 16. Rc2 {[%clk 0:02:10]}  Rh6 {[%clk 0:02:17]} 17. Kg1 {[%clk 0:02:07]}  Rf6 {[%clk 0:02:14]} 18. Qg2 {[%clk 0:02:07]}  Ne7 {[%clk 0:02:09]} 19. a4 {[%clk 0:01:59]}  h5 {[%clk 0:02:02]} 20. a5 {[%clk 0:01:53]}  h4 {[%clk 0:01:55]} 21. axb6 {[%clk 0:01:51]}  cxb6 {[%clk 0:01:53]} 22. Rac1 {[%clk 0:01:49]}  h3 {[%clk 0:01:51]} 23. Qf1 {[%clk 0:01:49]}  Qg4 {[%clk 0:01:38]} 24. Bb4 {[%clk 0:01:19]}  Ng6 {[%clk 0:01:33]} 25. Rc8+ {[%clk 0:01:10]}  Rxc8 {[%clk 0:01:33]} 26. Rxc8+ {[%clk 0:00:53]}  Qxc8 {[%clk 0:01:34]} 0-1


[Site "https://www.chess.com"]

[Event "Titled Tuesday Blitz November 07 Early 2023"]
[White "Ahmad, Khagan"]
[Black "Slovineanu, Viacheslav"]
[WhiteFideId "13431552"]
[BlackFideId "13900510"]
[WhiteElo "2508"]
[BlackElo "2403"]
[Result "0-1"]
[Round "8"]
[TimeControl "180+1"]
[Date "2023.11.07"]
[WhiteClock "0:00:00"]
[BlackClock "0:00:12"]
[Board "116"]

1. Nf3 {[%clk 0:03:00]}  d5 {[%clk 0:02:59]} 2. d4 {[%clk 0:02:59]}  Nf6 {[%clk 0:02:57]} 3. c4 {[%clk 0:02:56]}  e6 {[%clk 0:02:56]} 4. g3 {[%clk 0:02:48]}  Bb4+ {[%clk 0:02:50]} 5. Bd2 {[%clk 0:02:46]}  Be7 {[%clk 0:02:50]} 6. Bg2 {[%clk 0:02:47]}  O-O {[%clk 0:02:49]} 7. Qc2 {[%clk 0:02:47]}  Nbd7 {[%clk 0:02:45]} 8. O-O {[%clk 0:02:43]}  Ne4 {[%clk 0:02:37]} 9. Bf4 {[%clk 0:02:12]}  c6 {[%clk 0:02:31]} 10. Nfd2 {[%clk 0:02:08]}  f5 {[%clk 0:02:24]} 11. f3 {[%clk 0:02:08]}  Nef6 {[%clk 0:02:22]} 12. e4 {[%clk 0:01:47]}  fxe4 {[%clk 0:02:03]} 13. fxe4 {[%clk 0:01:47]}  dxe4 {[%clk 0:02:03]} 14. Nxe4 {[%clk 0:01:44]}  Nxe4 {[%clk 0:02:01]} 15. Qxe4 {[%clk 0:01:40]}  Nf6 {[%clk 0:02:01]} 16. Qd3 {[%clk 0:01:39]}  Qb6 {[%clk 0:01:47]} 17. Nc3 {[%clk 0:01:19]}  Qxb2 {[%clk 0:01:46]} 18. Be5 {[%clk 0:01:05]}  Qa3 {[%clk 0:01:39]} 19. Rab1 {[%clk 0:00:43]}  Qa5 {[%clk 0:00:52]} 20. Ne4 {[%clk 0:00:38]}  Qd8 {[%clk 0:00:47]} 21. Ng5 {[%clk 0:00:30]}  h6 {[%clk 0:00:40]} 22. Rxf6 {[%clk 0:00:27]}  hxg5 {[%clk 0:00:39]} 23. Rg6 {[%clk 0:00:10]}  Bf6 {[%clk 0:00:35]} 24. Qe4 {[%clk 0:00:04]}  Bd7 {[%clk 0:00:26]} 25. Rf1 {[%clk 0:00:04]}  Be8 {[%clk 0:00:22]} 26. Bxf6 {[%clk 0:00:03]}  Bxg6 {[%clk 0:00:22]} 27. Qxe6+ {[%clk 0:00:02]}  Bf7 {[%clk 0:00:21]} 28. Bxd8 {[%clk 0:00:01]}  Bxe6 {[%clk 0:00:21]} 29. Rxf8+ {[%clk 0:00:01]}  Kxf8 {[%clk 0:00:21]} 30. Bc7 {[%clk 0:00:02]}  Bxc4 {[%clk 0:00:20]} 31. Bd6+ {[%clk 0:00:03]}  Kg8 {[%clk 0:00:21]} 32. Be5 {[%clk 0:00:03]}  Bd5 {[%clk 0:00:20]} 33. Bf1 {[%clk 0:00:03]}  Rf8 {[%clk 0:00:20]} 34. a4 {[%clk 0:00:04]}  Rf3 {[%clk 0:00:16]} 35. a5 {[%clk 0:00:03]}  Ra3 {[%clk 0:00:15]} 36. Bc7 {[%clk 0:00:03]}  Ra2 {[%clk 0:00:15]} 37. h4 {[%clk 0:00:03]}  gxh4 {[%clk 0:00:15]} 38. gxh4 {[%clk 0:00:04]}  g6 {[%clk 0:00:14]} 39. Bd3 {[%clk 0:00:02]}  Kg7 {[%clk 0:00:12]} 40. Be5+ {[%clk 0:00:02]}  Kf7 {[%clk 0:00:12]} 41. Bc7 {[%clk 0:00:00]}  Rd2 {[%clk 0:00:12]} 0-1


[Site "https://www.chess.com"]

[Event "Titled Tuesday Blitz November 07 Early 2023"]
[White "Bazilius, Augustinas"]
[Black "Matveeva, Olga"]
[WhiteFideId "12832251"]
[BlackFideId "24107018"]
[WhiteElo "2506"]
[BlackElo "2401"]
[Result "0-1"]
[Round "8"]
[TimeControl "180+1"]
[Date "2023.11.07"]
[WhiteClock "0:00:01"]
[BlackClock "0:00:03"]
[Board "117"]

1. d4 {[%clk 0:03:00]}  d5 {[%clk 0:02:59]} 2. c4 {[%clk 0:02:57]}  e6 {[%clk 0:02:59]} 3. Nf3 {[%clk 0:02:58]}  Nf6 {[%clk 0:02:59]} 4. g3 {[%clk 0:02:58]}  Bb4+ {[%clk 0:02:58]} 5. Bd2 {[%clk 0:02:58]}  Be7 {[%clk 0:02:59]} 6. Bg2 {[%clk 0:02:58]}  O-O {[%clk 0:02:59]} 7. O-O {[%clk 0:02:59]}  Nbd7 {[%clk 0:02:57]} 8. Qc2 {[%clk 0:03:00]}  c6 {[%clk 0:02:57]} 9. Bf4 {[%clk 0:02:58]}  b6 {[%clk 0:02:56]} 10. Rd1 {[%clk 0:02:58]}  Bb7 {[%clk 0:02:56]} 11. Nc3 {[%clk 0:02:56]}  dxc4 {[%clk 0:02:44]} 12. Ne5 {[%clk 0:02:56]}  Nd5 {[%clk 0:02:38]} 13. Nxc4 {[%clk 0:02:51]}  Nxf4 {[%clk 0:02:36]} 14. gxf4 {[%clk 0:02:52]}  Rc8 {[%clk 0:02:35]} 15. Rac1 {[%clk 0:02:38]}  Qc7 {[%clk 0:02:34]} 16. Ne5 {[%clk 0:02:20]}  Nxe5 {[%clk 0:02:23]} 17. dxe5 {[%clk 0:02:10]}  Rfd8 {[%clk 0:02:07]} 18. Rxd8+ {[%clk 0:02:02]}  Rxd8 {[%clk 0:01:52]} 19. Nb5 {[%clk 0:02:01]}  Qb8 {[%clk 0:01:50]} 20. Bxc6 {[%clk 0:01:56]}  Rc8 {[%clk 0:01:46]} 21. Qe4 {[%clk 0:01:55]}  Rxc6 {[%clk 0:01:37]} 22. Rxc6 {[%clk 0:01:56]}  Qa8 {[%clk 0:01:36]} 23. Nxa7 {[%clk 0:01:10]}  Qxa7 {[%clk 0:01:30]} 24. Rc7 {[%clk 0:01:09]}  Bxe4 {[%clk 0:01:23]} 25. Rxa7 {[%clk 0:01:09]}  Bc5 {[%clk 0:01:22]} 26. a3 {[%clk 0:00:59]}  h5 {[%clk 0:01:16]} 27. e3 {[%clk 0:00:56]}  b5 {[%clk 0:01:01]} 28. Rc7 {[%clk 0:00:47]}  Bf8 {[%clk 0:00:56]} 29. Rc8 {[%clk 0:00:30]}  g6 {[%clk 0:00:55]} 30. b3 {[%clk 0:00:15]}  Kg7 {[%clk 0:00:55]} 31. a4 {[%clk 0:00:16]}  bxa4 {[%clk 0:00:50]} 32. bxa4 {[%clk 0:00:16]}  Bd3 {[%clk 0:00:36]} 33. Rc3 {[%clk 0:00:04]}  Be2 {[%clk 0:00:34]} 34. Rc2 {[%clk 0:00:04]}  Bd3 {[%clk 0:00:19]} 35. Rd2 {[%clk 0:00:04]}  Bc4 {[%clk 0:00:19]} 36. a5 {[%clk 0:00:04]}  g5 {[%clk 0:00:15]} 37. Rc2 {[%clk 0:00:02]}  Bd3 {[%clk 0:00:14]} 38. Rc3 {[%clk 0:00:01]}  Be2 {[%clk 0:00:13]} 39. Rc6 {[%clk 0:00:01]}  gxf4 {[%clk 0:00:10]} 40. exf4 {[%clk 0:00:02]}  Kg6 {[%clk 0:00:10]} 41. a6 {[%clk 0:00:02]}  Bf3 {[%clk 0:00:08]} 42. Rb6 {[%clk 0:00:02]}  Bc5 {[%clk 0:00:07]} 43. Rb3 {[%clk 0:00:02]}  Bd5 {[%clk 0:00:07]} 44. Rc3 {[%clk 0:00:02]}  Bd4 {[%clk 0:00:07]} 45. Rd3 {[%clk 0:00:02]}  Ba7 {[%clk 0:00:06]} 46. Rc3 {[%clk 0:00:02]}  Kf5 {[%clk 0:00:07]} 47. Rc7 {[%clk 0:00:02]}  Bb6 {[%clk 0:00:06]} 48. Rxf7+ {[%clk 0:00:02]}  Kg4 {[%clk 0:00:05]} 49. a7 {[%clk 0:00:02]}  Kf3 {[%clk 0:00:05]} 50. Rh7 {[%clk 0:00:02]}  Bxf2+ {[%clk 0:00:04]} 51. Kh1 {[%clk 0:00:01]}  Ke2# {[%clk 0:00:03]} 0-1


[Site "https://www.chess.com"]

[Event "Titled Tuesday Blitz November 07 Early 2023"]
[White "Krzywda, Andrzej"]
[Black "Dmitrenko, Viktor"]
[WhiteFideId "1114565"]
[BlackFideId "14110270"]
[WhiteElo "2501"]
[BlackElo "2390"]
[Result "1-0"]
[Round "8"]
[TimeControl "180+1"]
[Date "2023.11.07"]
[WhiteClock "0:00:25"]
[BlackClock "0:00:00"]
[Board "120"]

1. e4 {[%clk 0:02:56]}  c5 {[%clk 0:02:53]} 2. Nf3 {[%clk 0:02:56]}  Nc6 {[%clk 0:02:53]} 3. d4 {[%clk 0:02:57]}  cxd4 {[%clk 0:02:53]} 4. Nxd4 {[%clk 0:02:57]}  Nf6 {[%clk 0:02:53]} 5. Nc3 {[%clk 0:02:58]}  e5 {[%clk 0:02:51]} 6. Ndb5 {[%clk 0:02:58]}  d6 {[%clk 0:02:52]} 7. Bg5 {[%clk 0:02:57]}  a6 {[%clk 0:02:51]} 8. Na3 {[%clk 0:02:58]}  b5 {[%clk 0:02:51]} 9. Nd5 {[%clk 0:02:59]}  Be7 {[%clk 0:02:51]} 10. Bxf6 {[%clk 0:02:59]}  Bxf6 {[%clk 0:02:51]} 11. c4 {[%clk 0:03:00]}  b4 {[%clk 0:02:51]} 12. Nc2 {[%clk 0:03:00]}  a5 {[%clk 0:02:51]} 13. Qf3 {[%clk 0:03:00]}  Bg5 {[%clk 0:02:22]} 14. h4 {[%clk 0:02:59]}  Bxh4 {[%clk 0:02:13]} 15. c5 {[%clk 0:02:56]}  Be7 {[%clk 0:01:40]} 16. Bb5 {[%clk 0:02:47]}  Bd7 {[%clk 0:01:40]} 17. O-O-O {[%clk 0:02:28]}  Rb8 {[%clk 0:01:19]} 18. Bxc6 {[%clk 0:02:07]}  Bxc6 {[%clk 0:01:18]} 19. Nxe7 {[%clk 0:02:08]}  Qxe7 {[%clk 0:01:16]} 20. cxd6 {[%clk 0:02:07]}  Qe6 {[%clk 0:01:16]} 21. Kb1 {[%clk 0:02:03]}  b3 {[%clk 0:01:08]} 22. axb3 {[%clk 0:01:46]}  Rxb3 {[%clk 0:01:08]} 23. Qh5 {[%clk 0:01:46]}  g6 {[%clk 0:00:57]} 24. Qh4 {[%clk 0:01:41]}  Kd7 {[%clk 0:00:36]} 25. Ne3 {[%clk 0:01:28]}  Rhb8 {[%clk 0:00:34]} 26. Rd2 {[%clk 0:01:25]}  g5 {[%clk 0:00:24]} 27. Qxh7 {[%clk 0:01:19]}  a4 {[%clk 0:00:15]} 28. Nd5 {[%clk 0:01:04]}  Bxd5 {[%clk 0:00:04]} 29. exd5 {[%clk 0:01:03]}  Qe8 {[%clk 0:00:05]} 30. Qf5+ {[%clk 0:00:58]}  Kxd6 {[%clk 0:00:05]} 31. Rh6+ {[%clk 0:00:57]}  Kc5 {[%clk 0:00:05]} 32. Rc2+ {[%clk 0:00:29]}  Kb5 {[%clk 0:00:04]} 33. Rhc6 {[%clk 0:00:29]}  e4 {[%clk 0:00:00]} 34. d6+ {[%clk 0:00:25]} 1-0


[Site "https://www.chess.com"]

[Event "Titled Tuesday Blitz November 07 Early 2023"]
[White "Lehtosaari, Mauri"]
[Black "secrethawk1"]
[WhiteFideId "501999"]
[WhiteElo "2492"]
[BlackElo "2373"]
[Result "1-0"]
[Round "8"]
[TimeControl "180+1"]
[Date "2023.11.07"]
[WhiteClock "0:00:14"]
[BlackClock "0:00:12"]
[Board "122"]

1. d4 {[%clk 0:03:00]}  Nf6 {[%clk 0:02:57]} 2. Nf3 {[%clk 0:03:00]}  e6 {[%clk 0:02:55]} 3. Bg5 {[%clk 0:03:01]}  d5 {[%clk 0:02:53]} 4. Nbd2 {[%clk 0:03:00]}  Be7 {[%clk 0:02:53]} 5. e3 {[%clk 0:03:00]}  c5 {[%clk 0:02:51]} 6. c3 {[%clk 0:03:00]}  Nc6 {[%clk 0:02:50]} 7. Bd3 {[%clk 0:03:00]}  h6 {[%clk 0:02:46]} 8. Bh4 {[%clk 0:03:00]}  cxd4 {[%clk 0:02:44]} 9. exd4 {[%clk 0:02:58]}  O-O {[%clk 0:02:40]} 10. O-O {[%clk 0:02:56]}  a6 {[%clk 0:02:31]} 11. a4 {[%clk 0:02:55]}  Nd7 {[%clk 0:02:28]} 12. Bg3 {[%clk 0:02:51]}  Nf6 {[%clk 0:02:26]} 13. Re1 {[%clk 0:02:50]}  Bd6 {[%clk 0:02:22]} 14. Bh4 {[%clk 0:02:44]}  Be7 {[%clk 0:02:18]} 15. Qe2 {[%clk 0:02:42]}  b6 {[%clk 0:02:14]} 16. h3 {[%clk 0:02:32]}  Bb7 {[%clk 0:02:13]} 17. Bc2 {[%clk 0:02:07]}  Nd7 {[%clk 0:02:07]} 18. Qd3 {[%clk 0:02:00]}  f5 {[%clk 0:01:46]} 19. Bxe7 {[%clk 0:01:43]}  Qxe7 {[%clk 0:01:44]} 20. Re2 {[%clk 0:01:22]}  a5 {[%clk 0:01:34]} 21. Qe3 {[%clk 0:01:20]}  Rae8 {[%clk 0:01:25]} 22. Ne5 {[%clk 0:01:19]}  Ncxe5 {[%clk 0:01:15]} 23. dxe5 {[%clk 0:01:19]}  Nc5 {[%clk 0:01:10]} 24. Nb3 {[%clk 0:01:12]}  f4 {[%clk 0:01:07]} 25. Qd4 {[%clk 0:01:02]}  f3 {[%clk 0:01:01]} 26. Re3 {[%clk 0:01:02]}  fxg2 {[%clk 0:00:57]} 27. Rg3 {[%clk 0:01:02]}  Nxb3 {[%clk 0:00:51]} 28. Bxb3 {[%clk 0:01:00]}  Qc5 {[%clk 0:00:47]} 29. Kxg2 {[%clk 0:00:49]}  Qxd4 {[%clk 0:00:36]} 30. cxd4 {[%clk 0:00:50]}  Rf4 {[%clk 0:00:34]} 31. Rd1 {[%clk 0:00:48]}  Ref8 {[%clk 0:00:33]} 32. Rd2 {[%clk 0:00:48]}  Ba6 {[%clk 0:00:28]} 33. Rg6 {[%clk 0:00:39]}  Kf7 {[%clk 0:00:13]} 34. Bc2 {[%clk 0:00:33]}  Rc8 {[%clk 0:00:12]} 35. Rg3 {[%clk 0:00:33]}  g5 {[%clk 0:00:11]} 36. Rf3 {[%clk 0:00:29]}  Rxf3 {[%clk 0:00:10]} 37. Kxf3 {[%clk 0:00:30]}  Rc4 {[%clk 0:00:09]} 38. b3 {[%clk 0:00:27]}  Rc3+ {[%clk 0:00:09]} 39. Kg2 {[%clk 0:00:25]}  h5 {[%clk 0:00:09]} 40. f3 {[%clk 0:00:22]}  Ke7 {[%clk 0:00:06]} 41. Kf2 {[%clk 0:00:22]}  Kd7 {[%clk 0:00:05]} 42. Bd1 {[%clk 0:00:15]}  h4 {[%clk 0:00:03]} 43. Bc2 {[%clk 0:00:11]}  Ke7 {[%clk 0:00:03]} 44. Bd1 {[%clk 0:00:11]}  Kf7 {[%clk 0:00:03]} 45. Bc2 {[%clk 0:00:12]}  Kg7 {[%clk 0:00:03]} 46. Kg2 {[%clk 0:00:11]}  Kh6 {[%clk 0:00:02]} 47. Kf2 {[%clk 0:00:12]}  Bb7 {[%clk 0:00:01]} 48. Bd1 {[%clk 0:00:09]}  Rc6 {[%clk 0:00:01]} 49. Rc2 {[%clk 0:00:08]}  Rxc2+ {[%clk 0:00:01]} 50. Bxc2 {[%clk 0:00:09]}  Ba6 {[%clk 0:00:02]} 51. Ke3 {[%clk 0:00:09]}  Kg7 {[%clk 0:00:02]} 52. Bd1 {[%clk 0:00:09]}  Kg6 {[%clk 0:00:01]} 53. f4 {[%clk 0:00:09]}  Bf1 {[%clk 0:00:01]} 54. Bg4 {[%clk 0:00:09]}  Kh6 {[%clk 0:00:01]} 55. Bxe6 {[%clk 0:00:09]}  gxf4+ {[%clk 0:00:01]} 56. Kxf4 {[%clk 0:00:10]}  Bg2 {[%clk 0:00:01]} 57. Bf5 {[%clk 0:00:08]}  Kg7 {[%clk 0:00:01]} 58. Bd3 {[%clk 0:00:07]}  Kf8 {[%clk 0:00:01]} 59. Be2 {[%clk 0:00:07]}  Bxh3 {[%clk 0:00:02]} 60. Bg4 {[%clk 0:00:06]}  Bxg4 {[%clk 0:00:02]} 61. Kxg4 {[%clk 0:00:07]}  Ke7 {[%clk 0:00:02]} 62. Kxh4 {[%clk 0:00:08]}  Ke6 {[%clk 0:00:02]} 63. Kg5 {[%clk 0:00:08]}  b5 {[%clk 0:00:02]} 64. Kg6 {[%clk 0:00:07]}  b4 {[%clk 0:00:02]} 65. Kg5 {[%clk 0:00:06]}  Kd7 {[%clk 0:00:02]} 66. Kf6 {[%clk 0:00:07]}  Kc6 {[%clk 0:00:02]} 67. Ke6 {[%clk 0:00:07]}  Kb6 {[%clk 0:00:02]} 68. Kxd5 {[%clk 0:00:08]}  Kc7 {[%clk 0:00:02]} 69. Kc5 {[%clk 0:00:08]}  Kd8 {[%clk 0:00:02]} 70. Kb5 {[%clk 0:00:09]}  Kd7 {[%clk 0:00:03]} 71. Kxa5 {[%clk 0:00:10]}  Ke6 {[%clk 0:00:04]} 72. Kxb4 {[%clk 0:00:10]}  Kd5 {[%clk 0:00:05]} 73. Kc3 {[%clk 0:00:11]}  Ke4 {[%clk 0:00:05]} 74. b4 {[%clk 0:00:11]}  Kf5 {[%clk 0:00:06]} 75. Kc4 {[%clk 0:00:11]}  Ke6 {[%clk 0:00:06]} 76. a5 {[%clk 0:00:12]}  Kd7 {[%clk 0:00:06]} 77. Kc5 {[%clk 0:00:13]}  Kc7 {[%clk 0:00:06]} 78. b5 {[%clk 0:00:13]}  Kb7 {[%clk 0:00:07]} 79. d5 {[%clk 0:00:14]}  Ka7 {[%clk 0:00:08]} 80. d6 {[%clk 0:00:14]}  Kb7 {[%clk 0:00:09]} 81. e6 {[%clk 0:00:14]}  Ka7 {[%clk 0:00:10]} 82. e7 {[%clk 0:00:14]}  Kb7 {[%clk 0:00:10]} 83. e8=Q {[%clk 0:00:13]}  Ka7 {[%clk 0:00:11]} 84. Qe7+ {[%clk 0:00:14]}  Kb8 {[%clk 0:00:11]} 85. Kb6 {[%clk 0:00:14]}  Ka8 {[%clk 0:00:12]} 86. Qe8# {[%clk 0:00:14]} 1-0


[Site "https://www.chess.com"]